bitfinex/quotes_ETHUSD_20250519
["timestamp","ask_amount","ask_price","bid_price","bid_amount"]
[1747638739352,0.42274584,2393.8,2393.0,0.8644]
[1747638739685,4.17782791,2393.6,2393.3,10.964]
[1747638739854,4.11135336,2393.5,2393.3,10.964]
[1747638740055,4.17815659,2393.4,2393.3,10.964]
[1747638740295,0.05,2393.9,2393.0,0.8644]
[1747638740475,4.17823474,2393.4,2393.2,10.964]
[1747638740793,4.17833117,2393.3,2393.2,10.964]
[1747638740981,4.17885499,2393.0,2392.9,18.053]
[1747638741179,0.05,2393.9,2393.8,4.17745843]
[1747638741490,0.05,2393.9,2393.8,11.7703]
[1747638741854,0.05,2393.9,2393.8,15.94775843]
[1747638742493,0.21789486,2395.4,2394.0,0.8419]
[1747638742664,0.21789486,2395.4,2394.3,4.17658605]
[1747638742852,4.17512759,2395.2,2394.4,0.8419]
[1747638743054,4.17507807,2395.2,2394.5,22.126]
[1747638743252,0.8034,2395.8,2394.5,22.126]
[1747638743512,0.8034,2395.8,2394.6,0.04175015]
[1747638743806,4.17530911,2395.1,2394.5,22.126]
[1747638743968,4.17451599,2395.5,2394.4,11.8019]
[1747638744171,4.17451599,2395.5,2394.5,4.17622468]
[1747638744172,4.17545221,2395.0,2394.5,4.17622468]
[1747638744481,4.17541017,2395.0,2394.6,10.96]
[1747638745063,4.17573931,2394.8,2394.4,0.8419]
[1747638745294,0.47254102,2394.9,2394.4,11.152]
[1747638745611,4.17579397,2394.8,2394.4,11.152]
[1747638745753,0.05,2394.9,2394.5,0.7936]
[1747638746158,0.05,2394.9,2394.6,11.152]
[1747638746467,0.05,2394.9,2394.5,11.9796]
[1747638746468,4.22566116,2394.9,2394.7,11.152]
[1747638746857,0.05,2394.9,2394.5,0.7936]
[1747638747058,0.05,2394.9,2394.6,11.149]
[1747638747304,4.22565726,2394.9,2394.7,11.149]
[1747638747450,0.05,2394.9,2394.7,11.149]
[1747638747654,0.05,2394.9,2394.8,4.21746727]
[1747638747850,0.05,2394.9,2394.7,18.038]
[1747638748092,4.17571404,2394.8,2394.7,18.038]
[1747638748570,4.22557206,2394.9,2394.0,0.8122]
[1747638748571,0.05,2394.9,2394.3,11.149]
[1747638748917,4.17588842,2394.7,2394.2,11.149]
[1747638749093,4.17675922,2394.3,2394.2,11.149]
[1747638749280,4.17644538,2394.4,2394.2,11.149]
[1747638750074,4.17658605,2394.3,2394.2,11.149]
[1747638750482,0.05,2394.9,2394.2,11.149]
[1747638750795,4.17598179,2394.7,2394.2,11.149]
[1747638750997,4.22556803,2394.9,2394.2,11.149]
[1747638751162,4.17571404,2394.8,2394.2,15.32566946]
[1747638751358,0.05,2394.9,2394.4,0.8219]
[1747638751784,0.05,2394.9,2394.2,11.149]
[1747638751785,0.05,2394.9,2394.0,0.7907]
[1747638751980,4.22565626,2394.9,2394.4,4.17633162]
[1747638752182,0.05,2394.9,2394.1,11.149]
[1747638752354,4.17577862,2394.8,2394.2,11.149]
[1747638752559,0.05,2394.9,2394.2,11.149]
[1747638752777,4.17590961,2394.7,2394.2,15.32564482]
[1747638752979,4.17590961,2394.7,2394.3,4.17655849]
[1747638753392,0.05,2394.9,2394.2,15.32566519]
[1747638753586,0.05,2394.9,2394.3,0.04175863]
[1747638753785,0.05,2394.9,2394.5,4.17622608]
[1747638754216,4.17608544,2394.6,2394.0,0.7907]
[1747638754384,4.17618157,2394.6,2394.4,11.148]
[1747638754580,4.17571404,2394.8,2394.4,11.148]
[1747638754793,4.1758139,2394.8,2394.4,11.148]
[1747638754992,0.05,2394.9,2394.4,11.148]
[1747638755192,4.17597317,2394.7,2394.4,11.148]
[1747638755403,0.05,2394.9,2394.4,11.148]
[1747638755612,4.17606879,2394.6,2394.4,11.148]
[1747638755822,4.17613899,2394.6,2394.0,4.96768951]
[1747638756113,4.17647728,2394.4,2394.1,11.147]
[1747638756330,4.1766649,2394.3,2394.2,11.147]
[1747638756481,4.17650454,2394.4,2394.2,11.147]
[1747638757222,4.17638512,2394.5,2394.2,11.147]
[1747638757404,4.22567712,2394.9,2394.2,11.147]
[1747638757405,0.05,2394.9,2394.3,0.04176354]
[1747638757603,4.17616725,2394.6,2394.3,0.04176354]
[1747638757919,0.05,2394.9,2394.3,0.04176354]
[1747638758076,0.05,2394.9,2394.2,15.32365913]
[1747638758279,0.05,2394.9,2394.3,4.17644588]
[1747638758517,0.05,2394.9,2394.5,4.17609506]
[1747638758730,4.22560916,2394.9,2394.4,4.17626788]
[1747638758951,0.05,2394.9,2394.3,4.17645749]
[1747638759112,0.05,2394.9,2394.5,0.8306]
[1747638759321,0.05,2394.9,2394.8,4.17571404]
[1747638759617,0.05,2394.9,2394.8,15.32271404]
[1747638759921,0.05,2394.9,2394.8,33.35771404]
[1747638760483,0.05,2394.9,2394.8,29.182]
[1747638760684,0.05,2394.9,2394.8,18.035]
[1747638760926,0.05,2394.9,2394.8,29.182]
[1747638761237,0.05,2394.9,2394.8,33.59372117]
[1747638761522,0.05,2394.9,2394.8,29.41800713]
[1747638762522,0.05,2394.9,2394.8,33.59372117]
[1747638762819,0.05,2394.9,2394.8,30.21735826]
[1747638762982,0.05,2394.9,2394.8,33.59372117]
[1747638763613,0.05,2394.9,2394.8,33.89000039]
[1747638763782,0.05,2394.9,2394.8,34.12021778]
[1747638766387,4.17437224,2395.6,2395.1,4.17506182]
[1747638766721,4.17459901,2395.5,2395.0,4.17533094]
[1747638766919,4.17435307,2395.6,2395.1,10.824]
[1747638767120,0.8579,2395.7,2395.2,10.824]
[1747638767418,4.17448092,2395.6,2395.2,10.824]
[1747638767813,4.17448092,2395.6,2395.2,14.9989342]
[1747638768023,5.03212968,2395.7,2395.2,14.9989342]
[1747638768605,4.17432733,2395.6,2395.3,0.53285962]
[1747638769204,5.03214514,2395.7,2395.3,0.53285962]
[1747638769412,0.8579,2395.7,2395.3,0.53285962]
[1747638769624,4.17460179,2395.5,2395.3,11.35585962]
[1747638769920,4.17439662,2395.6,2395.3,0.53285962]
[1747638770290,4.17458941,2395.5,2395.4,0.23600713]
[1747638773104,0.05,2395.9,2395.4,0.46713028]
[1747638773295,4.17424897,2395.7,2395.4,0.46713028]
[1747638773492,4.17438892,2395.6,2395.4,0.46713028]
[1747638773698,4.17449384,2395.5,2395.4,0.46713028]
[1747638774127,4.17449384,2395.5,2395.4,0.23600713]
[1747638778296,14.92381787,2395.9,2395.6,4.17430327]
[1747638778297,0.05,2395.9,2395.6,4.17430327]
[1747638778629,0.05,2395.9,2395.8,4.17397111]
[1747638778969,0.05,2395.9,2395.8,4.64094601]
[1747638779494,0.05,2395.9,2395.8,0.4669749]
[1747638779694,4.2237969,2395.9,2395.8,0.4669749]
[1747638780744,0.05,2395.9,2395.8,0.4669749]
[1747638780893,0.05,2395.9,2395.8,1.11050713]
[1747638781099,0.05,2395.9,2395.8,19.13650713]
[1747638781299,0.05,2395.9,2395.8,29.08300713]
[1747638781606,0.05,2395.9,2395.8,33.25697824]
[1747638782748,0.05,2395.9,2395.8,33.48769717]
[1747638783046,0.05,2395.9,2395.8,29.31372606]
[1747638783245,0.05,2395.9,2395.8,34.31459717]
[1747638783556,0.05,2395.9,2395.8,44.65120217]
[1747638784065,0.05,2395.9,2395.8,44.47990717]
[1747638784243,0.005,2396.6,2396.5,5.02995192]
[1747638784563,0.005,2396.6,2396.5,26.54695192]
[1747638784706,0.005,2396.6,2396.5,36.81302992]
[1747638784909,0.005,2396.6,2396.5,26.77767085]
[1747638785129,0.005,2396.6,2396.5,5.5673987]
[1747638785338,0.05,2396.9,2396.8,5.01252963]
[1747638785508,0.05,2396.9,2396.8,18.8653]
[1747638785712,0.05,2396.9,2396.8,40.3803]
[1747638785936,0.05,2396.9,2396.8,44.55252963]
[1747638786117,0.05,2396.9,2396.8,45.01925569]
[1747638786313,0.05,2396.9,2396.8,23.50425569]
[1747638786522,0.05,2396.9,2396.8,29.30972606]
[1747638787539,4.22205557,2396.9,2396.8,18.26100713]
[1747638787739,4.22205557,2396.9,2396.2,0.81179782]
[1747638787740,4.17240372,2396.7,2396.2,0.81179782]
[1747638787939,10.744,2396.9,2396.2,0.81179782]
[1747638787940,4.17310019,2396.3,2396.2,0.81179782]
[1747638788353,5.01010019,2396.3,2396.2,0.81179782]
[1747638788647,5.844706,2396.3,2396.2,0.81179782]
[1747638788813,4.17344852,2396.1,2396.0,18.021]
[1747638789013,4.17397111,2395.8,2395.7,0.29602881]
[1747638789214,5.03967111,2395.8,2395.7,0.29602881]
[1747638791033,5.03967111,2395.8,2395.7,0.6444792]
[1747638791429,4.17330658,2396.2,2395.7,0.6444792]
[1747638791430,4.97686157,2396.5,2395.9,4.17371434]
[1747638791655,4.97678149,2396.5,2396.0,4.21521625]
[1747638791960,0.8618,2396.8,2396.0,0.04172977]
[1747638792125,4.17253871,2396.7,2396.0,4.21526565]
[1747638792330,4.17276877,2396.5,2396.0,4.21526565]
[1747638792527,4.1729298,2396.4,2396.0,0.04172977]
[1747638792726,4.17323455,2396.3,2395.9,10.693]
[1747638793259,4.17337484,2396.2,2396.0,10.818]
[1747638793779,4.1730724,2396.4,2396.0,10.818]
[1747638794009,4.1729534,2396.4,2396.0,10.818]
[1747638794137,5.03419803,2396.8,2396.0,10.818]
[1747638794339,4.17306803,2396.4,2396.0,10.818]
[1747638794535,4.17275245,2396.5,2396.1,0.04172981]
[1747638794845,0.8618,2396.8,2396.1,0.04172981]
[1747638795049,0.05,2396.9,2396.3,4.17310019]
[1747638795250,0.05,2396.9,2396.4,0.8429]
[1747638795451,0.05,2396.9,2396.5,10.818]
[1747638795651,0.05,2396.9,2396.5,14.99059596]
[1747638795848,0.05,2396.9,2396.4,0.8429]
[1747638796079,0.05,2396.9,2396.3,10.818]
[1747638796248,4.17232923,2396.8,2396.5,0.04172205]
[1747638796446,0.05,2396.9,2396.5,0.04172205]
[1747638796659,0.05,2396.9,2396.4,15.69684252]
[1747638796839,0.05,2396.9,2396.8,4.17222963]
[1747638797038,0.05,2396.9,2396.8,32.88822963]
[1747638797651,0.05,2396.9,2396.8,22.19422963]
[1747638797857,0.05,2396.9,2396.8,32.88722963]
[1747638798792,0.05,2396.9,2396.8,28.715]
[1747638798942,0.05,2396.9,2396.8,32.88722963]
[1747638800262,0.05,2396.9,2396.8,28.715]
[1747638800446,4.1723184,2396.8,2396.6,10.693]
[1747638800651,4.17243322,2396.7,2396.5,10.693]
[1747638800875,0.05,2396.9,2396.5,10.693]
[1747638801182,4.22212299,2396.9,2396.5,10.693]
[1747638801490,0.05,2396.9,2396.5,10.693]
[1747638801684,4.22215201,2396.9,2396.5,10.693]
[1747638801884,4.17240372,2396.7,2396.6,10.692]
[1747638802188,4.17276514,2396.5,2396.3,10.692]
[1747638802594,4.17292605,2396.4,2396.3,10.692]
[1747638802794,4.17317321,2396.3,2396.2,10.692]
[1747638803462,4.17301526,2396.4,2396.2,10.692]
[1747638803680,4.17284106,2396.5,2396.2,10.692]
[1747638803852,4.17293885,2396.4,2396.2,10.692]
[1747638804410,4.17310019,2396.3,2396.2,10.692]
[1747638804912,4.17414534,2395.7,2395.6,10.98802881]
[1747638805409,4.17414534,2395.7,2395.6,0.29602881]
[1747638806613,4.17414812,2395.7,2395.2,10.692]
[1747638806907,4.17571404,2394.8,2394.7,28.713]
[1747638807105,4.59328544,2394.8,2394.7,10.694]
[1747638807304,4.1760628,2394.6,2394.5,0.29602881]
[1747638807678,0.8524,2394.7,2394.5,0.29602881]
[1747638807911,4.1760628,2394.6,2394.5,0.29602881]
[1747638809818,4.17633117,2394.5,2394.1,0.05]
[1747638810121,5.02836211,2394.7,2394.1,0.05]
[1747638810122,4.17644849,2394.4,2394.1,0.05]
[1747638810325,4.17657638,2394.4,2394.1,0.05]
[1747638810621,4.17656506,2394.4,2394.1,0.05]
[1747638810913,4.1766072,2394.3,2394.1,0.05]
[1747638811297,4.17650216,2394.4,2394.1,0.05]
[1747638812636,4.1767605,2394.2,2394.1,0.05]
[1747638812931,4.17668726,2394.3,2394.1,0.05]
[1747638814128,4.1767605,2394.2,2394.1,0.05]
[1747638814330,4.9826605,2394.2,2394.1,0.05]
[1747638814530,0.8059,2394.6,2394.1,0.05]
[1747638814733,0.8059,2394.6,2394.2,4.17659414]
[1747638814907,4.17606783,2394.6,2394.1,4.22685123]
[1747638815091,4.17613613,2394.6,2394.1,4.22685123]
[1747638815296,0.8059,2395.0,2394.2,4.17669748]
[1747638815491,4.1760705,2394.6,2394.3,10.698]
[1747638816032,4.1762497,2394.5,2394.3,10.698]
[1747638816420,4.17662561,2394.3,2394.1,0.05]
[1747638816725,4.1767605,2394.2,2394.1,0.05]
[1747638817323,0.8588,2394.3,2394.1,0.05]
[1747638817523,4.17547217,2395.0,2394.2,14.87573276]
[1747638817834,4.17616167,2394.6,2394.2,11.5075]
[1747638818005,4.17606423,2394.6,2394.2,11.5075]
[1747638818195,4.17556641,2394.9,2394.2,0.8085]
[1747638818402,4.17641162,2394.4,2394.1,0.05]
[1747638818624,4.17639669,2394.5,2394.2,10.699]
[1747638818822,4.17643003,2394.4,2394.2,10.699]
[1747638819235,5.02722936,2394.8,2394.1,0.05]
[1747638819407,4.1767605,2394.2,2394.1,0.05]
[1747638819613,4.9744605,2394.2,2394.1,0.05]
[1747638819823,4.1766985,2394.3,2394.1,0.05]
[1747638820028,4.97396246,2394.5,2394.1,0.05]
[1747638820029,4.97406356,2394.5,2394.1,0.05]
[1747638820249,4.17636356,2394.5,2394.1,4.22692554]
[1747638820450,0.7977,2395.4,2394.1,11.5998]
[1747638820613,0.7977,2395.4,2394.2,21.39]
[1747638820811,4.17544029,2395.0,2394.5,4.17614929]
[1747638821014,4.17544029,2395.0,2394.6,18.032]
[1747638821250,0.7977,2395.4,2394.7,10.74075372]
[1747638821449,0.7977,2395.4,2394.8,4.17556124]
[1747638821754,4.17467933,2395.4,2394.9,4.17546773]
[1747638821911,4.17484571,2395.3,2394.8,4.17561189]
[1747638822333,4.17484571,2395.3,2394.6,18.032]
[1747638822334,0.83493616,2395.3,2394.6,18.032]
[1747638822643,4.17588842,2394.7,2394.6,18.032]
[1747638822847,4.17579744,2394.8,2394.6,28.731]
[1747638823012,0.8259,2395.0,2394.6,28.731]
[1747638823350,0.05,2396.9,2394.6,28.731]
[1747638823351,0.05,2396.9,2394.7,10.69]
[1747638823515,4.1742196,2395.7,2394.7,11.4931]
[1747638823848,4.1742196,2395.7,2394.7,15.66895308]
[1747638824027,0.8544,2395.9,2394.7,11.4931]
[1747638824237,4.17423104,2395.7,2395.0,4.1752222]
[1747638824429,4.17423104,2395.7,2395.2,4.17490067]
[1747638824631,5.02835539,2395.9,2395.4,4.17457635]
[1747638824953,4.17425124,2395.7,2395.2,4.17484692]
[1747638825564,4.17425124,2395.7,2395.3,4.1748396]
[1747638825764,4.17425124,2395.7,2395.2,4.174926]
[1747638826365,0.8544,2395.9,2395.1,10.699]
[1747638826691,90.285105,2396.0,2395.9,4.1737969]
[1747638826872,90.285105,2396.0,2395.9,18.03]
[1747638827072,90.285105,2396.0,2395.9,28.717]
[1747638827435,4.17301187,2396.4,2395.9,32.89071422]
[1747638827681,4.17287575,2396.5,2396.0,4.17345581]
[1747638827967,4.17287575,2396.5,2396.0,4.17346803]
[1747638828369,0.8299,2396.6,2395.9,18.03]
[1747638828683,4.1736227,2396.0,2395.9,28.716]
[1747638828983,4.17356447,2396.1,2395.9,28.716]
[1747638829150,4.17329199,2396.2,2395.9,28.716]
[1747638829332,0.8299,2396.6,2395.9,28.716]
[1747638829539,4.17319289,2396.3,2395.9,28.716]
[1747638829864,4.17341422,2396.2,2395.9,28.716]
[1747638830062,4.17350329,2396.1,2395.9,28.716]
[1747638830237,4.1736227,2396.0,2395.9,18.03]
[1747638830441,5.0083186,2396.0,2395.9,28.715]
[1747638830783,5.7949186,2396.0,2395.9,28.715]
[1747638831481,0.7866,2396.4,2395.9,28.715]
[1747638831700,4.17310255,2396.3,2395.9,28.715]
[1747638833253,4.17324537,2396.3,2395.9,28.715]
[1747638833450,4.17322337,2396.3,2395.9,28.715]
[1747638833684,4.1726849,2396.6,2396.0,4.17354717]
[1747638833983,4.17277294,2396.5,2396.1,4.17343366]
[1747638834218,0.8158,2396.7,2395.9,32.88870457]
[1747638834359,0.8158,2396.7,2396.0,10.684]
[1747638834563,4.17314115,2396.3,2396.0,10.684]
[1747638835490,4.98829035,2396.7,2396.0,10.684]
[1747638835491,0.8158,2396.7,2396.0,10.684]
[1747638835680,4.17257781,2396.6,2396.0,10.684]
[1747638835879,4.17275192,2396.5,2396.0,14.85760528]
[1747638836088,4.17293094,2396.4,2396.0,14.85760528]
[1747638836474,4.17322152,2396.3,2396.0,10.684]
[1747638836683,4.17351016,2396.1,2395.9,18.03]
[1747638836899,4.17351016,2396.1,2396.0,10.683]
[1747638837279,4.1736227,2396.0,2395.9,18.03]
[1747638838010,4.97185375,2396.1,2395.8,10.683]
[1747638838173,4.17373195,2396.0,2395.8,10.683]
[1747638838504,4.17366581,2396.0,2395.8,10.683]
[1747638838713,0.7984,2396.1,2395.8,10.683]
[1747638838875,4.1737969,2395.9,2395.8,10.683]
[1747638839614,4.17369041,2396.0,2395.8,10.683]
[1747638839917,0.05,2396.9,2395.9,4.1737969]
[1747638840210,11.4677,2396.7,2395.6,4.17421307]
[1747638840361,4.17396765,2395.9,2395.5,0.8168]
[1747638840566,4.17377511,2396.0,2395.6,10.683]
[1747638840767,0.7931,2396.3,2395.9,4.17369026]
[1747638840961,0.7931,2396.8,2395.7,0.8168]
[1747638841202,4.17343667,2396.2,2395.7,5.30560858]
[1747638841366,0.7931,2396.8,2396.0,4.17352524]
[1747638841565,4.17240372,2396.7,2396.1,14.85643637]
[1747638841898,11.4671,2396.8,2396.6,4.17248428]
[1747638841899,0.7931,2396.8,2396.6,4.17248428]
[1747638842101,0.05,2396.9,2396.8,4.17222963]
[1747638842272,0.05,2396.9,2396.8,14.85522963]
[1747638843200,0.05,2396.9,2396.8,15.72552963]
[1747638843903,0.05,2396.9,2396.8,19.17160124]
[1747638844104,0.05,2396.9,2396.8,1.10637161]
[1747638844309,0.05,2396.9,2396.8,11.78937161]
[1747638844512,4.22205557,2396.9,2396.8,10.91907161]
[1747638844812,4.22205557,2396.9,2396.8,0.23607161]
[1747638845007,5.08355557,2396.9,2396.8,0.23607161]
[1747638845298,6.009102,2396.9,2396.8,0.23607161]
[1747638845501,6.009102,2396.9,2396.2,18.023]
[1747638845502,4.17310019,2396.3,2396.2,18.023]
[1747638845703,4.17310019,2396.3,2396.2,28.706]
[1747638846310,1.83704643,2396.9,2396.2,28.706]
[1747638846481,0.60090308,2396.8,2396.2,28.706]
[1747638846694,4.17283692,2396.5,2396.2,28.706]
[1747638846897,4.1730201,2396.4,2396.2,28.706]
[1747638847205,4.17310019,2396.3,2396.2,18.023]
[1747638847416,4.17297363,2396.4,2396.2,18.023]
[1747638847716,4.17285948,2396.5,2396.2,18.023]
[1747638847884,4.17310019,2396.3,2396.2,18.023]
[1747638848089,4.17310019,2396.3,2396.2,28.705]
[1747638848285,4.17310019,2396.3,2396.2,18.023]
[1747638849717,5.08364707,2396.9,2396.2,18.023]
[1747638849897,4.17310019,2396.3,2396.2,18.023]
[1747638850320,4.98380019,2396.3,2396.2,18.023]
[1747638850901,4.17344852,2396.1,2396.0,10.682]
[1747638854716,4.173313,2396.2,2395.5,18.31602881]
[1747638855039,4.17397401,2395.8,2395.6,11.15236246]
[1747638855210,4.17397401,2395.8,2395.6,0.46936246]
[1747638855553,4.17414534,2395.7,2395.6,0.46936246]
[1747638855839,4.72431958,2395.6,2395.5,0.29602881]
[1747638856024,5.51214239,2395.3,2395.2,0.39472721]
[1747638856224,5.51214239,2395.3,2395.2,0.0986818]
[1747638856225,6.89974289,2395.3,2395.2,0.0986818]
[1747638856531,4.17588842,2394.7,2394.6,0.81179782]
[1747638856719,15.62318842,2394.7,2394.6,0.81179782]
[1747638856896,4.1767605,2394.2,2393.9,10.661]
[1747638857101,4.17622178,2394.6,2394.1,0.39868326]
[1747638857401,4.17652107,2394.4,2394.1,0.39868326]
[1747638857604,4.96320958,2394.7,2394.1,11.05968326]
[1747638857803,4.17675267,2394.3,2394.1,11.05968326]
[1747638858330,5.0074605,2394.2,2394.1,0.05]
[1747638862305,17.74661381,2394.2,2394.1,0.05]
[1747638862818,17.71881381,2394.2,2394.1,0.05]
[1747638863124,18.03168657,2394.2,2394.1,0.05]
[1747638863431,18.03168657,2394.2,2393.1,0.05]
[1747638863432,4.98140576,2393.2,2393.1,0.05]
[1747638863644,5.53140576,2393.2,2393.1,0.05]
[1747638864003,15.64240576,2393.2,2393.1,0.05]
[1747638864617,4.98140576,2393.2,2393.1,0.05]
[1747638865212,8.36681142,2393.7,2393.1,0.05]
[1747638865441,4.17850576,2393.2,2393.1,0.05]
[1747638866121,16.19190576,2393.2,2393.1,0.05]
[1747638868260,4.98290576,2393.2,2393.1,0.05]
[1747638868913,4.17880997,2393.1,2392.6,10.59]
[1747638869114,0.89168114,2393.6,2392.7,0.8996936]
[1747638869341,4.17806619,2393.5,2393.0,4.1787806]
[1747638869509,4.17806619,2393.5,2393.1,10.67]
[1747638870407,4.17819145,2393.4,2393.1,10.67]
[1747638870644,4.17828985,2393.4,2393.1,10.67]
[1747638870849,4.17837178,2393.3,2393.1,10.67]
[1747638871138,4.17850576,2393.2,2393.1,10.67]
[1747638871315,4.1784333,2393.3,2393.1,10.67]
[1747638871521,10.657,2393.7,2393.1,10.67]
[1747638871724,1.14877,2393.6,2393.2,4.17837527]
[1747638871936,5.00816747,2393.8,2393.2,4.17837527]
[1747638872139,4.17781107,2393.6,2393.2,4.17837527]
[1747638872712,4.17781107,2393.6,2393.1,14.84863131]
[1747638872913,4.17729059,2393.9,2393.5,5.03058203]
[1747638873145,4.17753337,2393.8,2393.6,10.672]
[1747638873646,19.00073471,2394.4,2393.6,10.672]
[1747638873867,4.17658605,2394.3,2393.7,4.17753963]
[1747638874154,4.17693862,2394.1,2393.6,14.84972912]
[1747638874308,18.17186983,2394.4,2393.6,10.672]
[1747638874641,4.17710944,2394.0,2393.2,0.8431]
[1747638874826,4.17786985,2393.6,2393.3,10.672]
[1747638875031,4.17798829,2393.5,2393.3,10.672]
[1747638875341,4.17795665,2393.6,2393.3,10.672]
[1747638875717,4.17805789,2393.5,2393.3,10.672]
[1747638876213,4.17815659,2393.4,2393.3,10.672]
[1747638876419,4.17808398,2393.5,2393.3,10.672]
[1747638876835,4.17808398,2393.5,2392.1,0.8367]
[1747638876836,1.66649548,2393.4,2392.1,0.8367]
[1747638877033,4.17835684,2393.3,2392.2,28.713]
[1747638877227,1.66649548,2393.4,2392.3,4.17999848]
[1747638877460,4.17833117,2393.3,2392.4,4.17986132]
[1747638877667,4.17905427,2392.9,2392.4,4.17980569]
[1747638877873,4.17894446,2393.0,2392.3,0.5]
[1747638878155,4.17821563,2393.4,2392.9,4.17893827]
[1747638878340,4.17763295,2393.7,2393.0,10.672]
[1747638878538,4.17829113,2393.4,2393.0,10.672]
[1747638878741,15.69975331,2393.8,2393.0,10.672]
[1747638878920,1.56997533,2393.7,2393.0,10.672]
[1747638879120,4.17868037,2393.1,2393.0,10.672]
[1747638880462,4.17922485,2392.8,2392.6,10.673]
[1747638880651,4.17937894,2392.7,2392.6,10.673]
[1747638880818,4.17990542,2392.4,2392.1,0.05]
[1747638881026,10.647,2392.8,2392.1,0.05]
[1747638881231,4.17985025,2392.5,2392.1,0.05]
[1747638881456,4.17985025,2392.5,2392.1,4.23038647]
[1747638881638,4.17947376,2392.7,2392.2,5.05043404]
[1747638881954,4.17958665,2392.6,2392.2,0.8702]
[1747638882329,4.17947452,2392.7,2392.3,10.674]
[1747638882652,14.82527099,2392.8,2392.3,10.674]
[1747638882653,14.82526234,2392.8,2392.3,10.674]
[1747638882856,4.17937894,2392.7,2392.3,10.674]
[1747638883045,10.646,2392.8,2392.3,10.674]
[1747638883239,4.17933307,2392.8,2392.3,10.674]
[1747638883456,4.17968309,2392.6,2392.3,10.674]
[1747638883659,4.17981999,2392.5,2392.3,10.674]
[1747638884037,4.17990302,2392.4,2392.3,10.674]
[1747638884665,4.17982911,2392.5,2392.3,10.674]
[1747638884865,4.17990302,2392.4,2392.3,10.674]
[1747638885440,4.17983431,2392.5,2392.3,10.674]
[1747638885644,4.17990302,2392.4,2392.3,10.674]
[1747638887051,4.17958368,2392.6,2392.3,10.674]
[1747638887251,4.17985789,2392.5,2392.3,10.90594882]
[1747638888052,4.17985789,2392.5,2392.3,10.674]
[1747638888253,4.17988963,2392.5,2392.3,10.674]
[1747638888467,4.17990302,2392.4,2392.3,10.674]
[1747638888688,4.17988963,2392.5,2392.3,10.674]
[1747638888689,4.17981226,2392.5,2392.3,10.674]
[1747638888891,4.18025248,2392.2,2392.1,0.05]
[1747638889191,4.18020036,2392.3,2392.1,0.05]
[1747638889399,4.18025248,2392.2,2392.1,0.05]
[1747638889751,1.48243331,2392.8,2392.1,0.05]
[1747638890000,0.8479,2392.9,2392.1,4.23041532]
[1747638890162,0.8479,2392.9,2392.1,0.05]
[1747638890163,4.17920427,2392.8,2392.1,0.05]
[1747638890363,4.18025248,2392.2,2392.1,0.05]
[1747638892755,4.18007869,2392.3,2392.1,0.05]
[1747638892959,4.18025248,2392.2,2392.1,0.05]
[1747638893557,5.01628964,2392.2,2392.1,0.05]
[1747638894455,0.8456,2392.8,2392.1,0.05]
[1747638894659,4.17999854,2392.4,2392.1,0.9169]
[1747638894861,4.17982992,2392.5,2392.1,0.9169]
[1747638895055,4.17974066,2392.5,2392.1,0.9169]
[1747638895303,4.17959791,2392.6,2392.1,0.9169]
[1747638895304,4.1796263,2392.6,2392.1,0.9169]
[1747638895516,10.07,2393.0,2392.1,0.9169]
[1747638895517,4.17914862,2392.9,2392.2,10.643]
[1747638895684,4.17936867,2392.8,2392.3,4.17998844]
[1747638895994,0.8138,2393.1,2392.2,0.23857395]
[1747638896163,4.17969106,2392.6,2392.4,10.643]
[1747638896561,4.17965252,2392.6,2392.4,10.643]
[1747638896778,0.8138,2393.1,2392.4,10.643]
[1747638896779,4.17921292,2392.8,2392.4,14.82280835]
[1747638897178,4.17946826,2392.7,2392.5,0.23224235]
[1747638897369,4.17955362,2392.6,2392.5,0.23224235]
[1747638899103,4.17947893,2392.7,2392.4,10.643]
[1747638899322,4.17947893,2392.7,2392.5,0.23855072]
[1747638899534,4.17955362,2392.6,2392.5,0.23855072]
[1747638901031,4.17955362,2392.6,2392.2,10.642]
[1747638901227,0.8676,2393.0,2392.2,10.642]
[1747638901414,0.8676,2393.0,2392.2,14.82216587]
[1747638901610,1.56672949,2392.9,2392.3,4.4123549]
[1747638901836,4.17898836,2393.0,2392.4,4.17973553]
[1747638902021,4.17898836,2393.0,2392.5,4.17962482]
[1747638902412,4.1790333,2392.9,2392.6,0.47079814]
[1747638902613,4.17934542,2392.8,2392.6,0.47079814]
[1747638902923,4.17937894,2392.7,2392.6,0.47079814]
[1747638903126,5.01525084,2392.7,2392.6,0.47079814]
[1747638903533,5.01525084,2392.7,2392.6,0.23842007]
[1747638904008,4.17910139,2392.9,2392.6,0.23842007]
[1747638904206,4.17933276,2392.8,2392.6,0.23842007]
[1747638904437,4.17933276,2392.8,2392.5,10.642]
[1747638904643,0.8508,2393.3,2392.5,10.642]
[1747638905018,4.17912132,2392.9,2392.5,10.642]
[1747638905221,4.17921207,2392.8,2392.6,0.23245607]
[1747638905422,4.17937894,2392.7,2392.6,0.23245607]
[1747638906861,4.17955362,2392.6,2392.5,0.23907109]
[1747638907151,4.17937894,2392.7,2392.5,0.23907109]
[1747638907152,4.17948148,2392.7,2392.5,0.23907109]
[1747638907509,0.41791213,2392.9,2392.5,0.23907109]
[1747638907510,4.17926614,2392.8,2392.5,0.23907109]
[1747638907747,5.02915576,2393.3,2392.5,0.23907109]
[1747638908043,4.17910195,2392.9,2392.5,0.23907109]
[1747638908241,4.17910096,2392.9,2392.5,0.23907109]
[1747638908432,4.17910096,2392.9,2392.6,0.23907109]
[1747638909146,1.51477379,2393.5,2392.7,1.14085625]
[1747638909381,0.35077626,2393.5,2392.7,1.09906303]
[1747638909645,4.17860294,2393.2,2392.7,5.27830819]
[1747638909826,4.17860294,2393.2,2392.8,4.65093764]